Cogmind - Beta 12 X4 @@@ ROGUE MODE // 2023.01.14 @ 16:57:25 Player: Decinym Result: Destroyed by Y-45 Defender with Heavy Assault Rifle Performance ------------- Evolutions (2) 1000 Regions Visited (8) 1600 Robots Destroyed (78) 390 Value Destroyed (1941) 1941 Prototype IDs (33) 660 Alien Tech Used (0) 0 Bonus (453) 453 TOTAL SCORE: 6044 Bonus ------- High Alert Combat Kills 33 Follower Combat Kills 132 Aligned with FarCom 300 Friendly Fire -12 Cogmind --------- Core Integrity 0/550 Matter 153/300 Energy 263/280 System Corruption 0% Temperature Cool (9) Movement Treading (240) Ox1 Location -8/Storage Parts ------- > --- POWER (1) -------- Heavy Ion Engine > --- PROPULSION (3) --- Light Treads Light Treads Light Treads > --- UTILITY (5) ------ Experimental Heat Sink Huge Storage Unit Improved Signal Interpreter Experimental Core Analyzer Improved Armor Integrity Analyzer > --- WEAPON (2) ------- Precision Beam Rifle Precision Beam Rifle > --- INVENTORY (25) --- Heavy Ion Engine Cold Fusion Reactor Light Treads Light Treads Advanced Myomer Leg Advanced Myomer Leg Armored Wheel Experimental Targeting Computer Advanced Transmission Jammer Advanced Recalibrator AS-neutralizer No. 17b Precision Beam Rifle Precision Beam Rifle EM Pulse Cannon 8R-AWN's Boregun Precision Grenade Launcher Precision Grenade Launcher Field Lobotomy Kit (5) Plasma Cutter Deploy-a-Sentry Deploy-a-Sentry Peak State ------------ > --- POWER ------------ Heavy Ion Engine > --- PROPULSION ------- Light Treads Compact Wheel Armored Wheel > --- UTILITY ---------- Experimental Heat Sink Experimental Heat Sink Huge Storage Unit Improved Signal Interpreter Experimental Core Analyzer > --- WEAPON ----------- Precision Beam Rifle Precision Grenade Launcher > --- INVENTORY -------- Heavy Ion Engine Cold Fusion Reactor Light Treads Light Treads Light Treads Light Treads Advanced Myomer Leg Advanced Myomer Leg Experimental Targeting Computer Improved Armor Integrity Analyzer Advanced Transmission Jammer Advanced Recalibrator AS-neutralizer No. 17b Precision Beam Rifle Precision Beam Rifle Precision Beam Rifle EM Pulse Cannon 8R-AWN's Boregun Precision Grenade Launcher Field Lobotomy Kit Plasma Cutter Deploy-a-Sentry Deploy-a-Sentry [Rating: 55] Favorites ----------- Power Improved Ion Engine Engine Improved Ion Engine Power Core Reinforced Fission Core Reactor Cold Fusion Reactor Propulsion Improved Treads Treads Improved Treads Leg Aluminum Leg Wheel Armored Wheel Utility Light Armor Plating Device Experimental Heat Sink Storage Huge Storage Unit Processor Advanced Targeting Computer Protection Light Armor Plating Weapon Heavy Assault Rifle Energy Gun Precision Beam Rifle Ballistic Gun Heavy Assault Rifle Ballistic Cannon Light Cannon Launcher Rocket Launcher Special Weapon Plasma Cutter Impact Weapon Hammer Build | -11 -10 -10 -9 -9 -9 -8 -8 -8 ------- Run | Scr Mat Min Mat Min Exi Min Mat Sto Slots Evolved 4 | . . . 2 . . . 2 . Power . | . . . . . . . . . Propulsion 1 | . . . 1 . . . . . Utility 3 | . . . 1 . . . 2 . Weapon . | . . . . . . . . . Parts Attached 101 | . 2 6 23 4 26 2 27 11 Power 10 | . . 2 3 . 3 . 1 1 Engine 7 | . . 2 3 . 1 . . 1 Core 1 | . . . . . 1 . . . Reactor 2 | . . . . . 1 . 1 . Propulsion 28 | . . 2 9 . 2 . 11 4 Treads 19 | . . . 8 . 2 . 6 3 Leg 5 | . . 2 1 . . . 2 . Wheel 4 | . . . . . . . 3 1 Hover . | . . . . . . . . . Flight . | . . . . . . . . . Utility 26 | . 1 1 3 . 11 . 7 3 Device 10 | . . . 1 . 5 . 4 . Storage 3 | . 1 . 1 . 1 . . . Processor 5 | . . 1 . . . . 2 2 Hackware . | . . . . . . . . . Protection 8 | . . . 1 . 5 . 1 1 Artifact . | . . . . . . . . . Weapon 37 | . 1 1 8 4 10 2 8 3 Energy Gun 5 | . . . . . . . 3 2 Energy Cannon . | . . . . . . . . . Ballistic Gun 16 | . . . 5 2 5 2 2 . Ballistic Cannon 1 | . . 1 . . . . . . Launcher 9 | . 1 . . 2 2 . 3 1 Special Weapon 5 | . . . 2 . 3 . . . Impact Weapon 1 | . . . 1 . . . . . Slashing Weapon . | . . . . . . . . . Piercing Weapon . | . . . . . . . . . Special Melee Weapon . | . . . . . . . . . Unidentified Prototypes 10 | . . . 2 . 5 . 2 1 Parts Lost 28 | . . 1 3 . 7 . 14 3 Power 3 | . . 1 . . 1 . 1 . Propulsion 9 | . . . 1 . 1 . 5 2 Utility 10 | . . . 1 . 3 . 5 1 Weapon 6 | . . . 1 . 2 . 3 . Highest Loss Streak 14 | . . 1 2 . 3 . 14 2 To Critical Strikes 2 | . . . . . 2 . . . Average Slot Usage (%) 94 | . 78 84 96 100 98 100 89 99 Engine 9 | . 14 14 11 11 8 . . 5 Core 1 | . . . . . 1 11 4 . Treads 22 | . . . 17 33 33 33 14 12 Leg 8 | . 28 28 15 . . . 2 . Device 2 | . . . 3 . . . 14 17 Storage 11 | . 14 14 11 11 11 11 9 9 Processor 4 | . . . 11 11 4 . 4 18 Protection 9 | . . . 4 11 15 22 9 . Energy Gun 1 | . 7 . . . . . 5 17 Ballistic Gun 16 | . 14 14 15 21 18 22 11 . Ballistic Cannon 3 | . . 13 3 . . . . . Launcher 1 | . . . . . 2 . 1 . Naked Turns . | . . . . . . . . . Heaviest Build 122 | 10 44 49 56 56 119 119 122 96 Greatest Support 69 | 20 20 40 69 69 69 66 66 60 Greatest Overweight (x) 7 | . 2 2 . . 1 1 7 5 Average Overweight (x) . | . . 1 . . . 1 2 2 Largest Inventory Capacity 25 | . 20 20 20 20 25 25 25 25 Average Capacity 22 | . 12 20 20 20 24 25 25 25 Most Carried 25 | . 12 17 20 20 25 25 25 23 Average Carried 18 | . 8 12 18 20 20 24 20 22 Final Capacity 25 | 8 20 20 20 20 25 25 25 25 Final Carried 25 | 6 12 16 20 20 25 25 21 21 Class Distribution -------------------- 54% | Scavenger-Mutant 45% | Mutant Dominant Class ---------------- Mutant | -10/Materials Mutant | -10/Mines Scavenger-Mutant | -9/Materials Scavenger-Mutant | -9/Mines Scavenger-Mutant | -9/Exiles Scavenger-Mutant | -8/Mines Mutant | -8/Materials Scavenger-Mutant | -8/Storage Resources | -11 -10 -10 -9 -9 -9 -8 -8 -8 ----------- Run | Scr Mat Min Mat Min Exi Min Mat Sto Matter Collected 2462 | 200 5 202 409 53 960 24 599 10 Remotely . | . . . . . . . . . Salvage Created 2659 | . 117 116 673 16 562 . 733 442 Parts 224 | . 10 7 51 10 84 . 44 18 Haulers Intercepted 5 | . . . 3 . . . 1 1 Recyclers Shooed 4 | . 1 . 2 . . . 1 . Parts Field Recycled . | . . . . . . . . . Retrieved Matter . | . . . . . . . . . Parts Self-Destructed . | . . . . . . . . . Prevented . | . . . . . . . . . Kills | -11 -10 -10 -9 -9 -9 -8 -8 -8 ------- Run | Scr Mat Min Mat Min Exi Min Mat Sto Combat Hostiles Destroyed 54 | . 6 4 6 6 5 . 19 8 Melee 1 | . . . . . 1 . . . Guns 18 | . 3 1 5 . . . 5 4 Cannons 4 | . . 3 1 . . . . . AOE 31 | . 3 . . 6 4 . 14 4 Classes Destroyed 16 | . 4 . 4 . 3 . 2 3 Worker 4 | . 1 1 1 . . . 1 . Builder 2 | . 1 . 1 . . . . . Hauler 5 | . . . 3 . . . 1 1 Recycler 4 | . . . 2 . . . 2 . Mechanic 2 | . . . . . . . . 2 Turret 1 | . . . . . 1 . . . Watcher 2 | . . . 1 . . . 1 . Swarmer 14 | . 3 . 1 6 . . 4 . Grunt 24 | . 3 4 3 . . . 10 4 Brawler 2 | . . . . . . . . 2 Duelist 2 | . . . . . . . . 2 Sentry 4 | . . . 2 . . . 2 . Specialist 2 | . . . . . . . 2 . Heavy 1 | . . . . . . . 1 . Zionite 6 | . . . . . 6 . . . Assembled 4 | . . . . . 4 . . . Best Kill Streak 19 | . 5 2 4 3 4 . 19 10 Combat Bots Only 17 | . 3 2 3 3 4 . 17 8 Max Kills in Single Turn 6 | . 2 2 1 2 2 . 6 2 Gunslinging . | . . . . . . . . . Exploded 5 | . 1 . . 2 2 . 5 2 Melee 1 | . . . . . 1 . . . Uniques/NPCs Destroyed 5 | . . . . . 4 1 . . 8R-AWN (-9/Exiles) EX-HEX (-9/Exiles) EX-DEC (-9/Exiles) EX-BIN (-9/Exiles) 12-ASH (-8/Mines) Combat | -11 -10 -10 -9 -9 -9 -8 -8 -8 -------- Run | Scr Mat Min Mat Min Exi Min Mat Sto Damage Taken 5447 | . 145 308 469 43 1232 114 2373 763 Core 993 | . 19 54 78 15 218 58 388 163 Absorbed by Shields 199 | . . . . . 199 . . . Core Remaining (%) 59 | 100 . 70 . . . 7 . . Volleys Fired 258 | . 17 20 43 4 108 7 37 22 Largest 2 | . 2 2 2 1 2 2 2 2 Hottest 122 | . 60 55 55 33 60 60 122 122 Shots Fired 453 | . 29 40 84 4 179 14 63 40 Gun 348 | . 25 20 71 . 136 14 46 36 Cannon 21 | . . 20 1 . . . . . Launcher 38 | . 4 . . 4 9 . 17 4 Special 46 | . . . 12 . 34 . . . Kinetic 309 | . 13 40 72 . 136 14 34 . Thermal 106 | . 12 . 12 . 34 . 12 36 Explosive 38 | . 4 . . 4 9 . 17 4 Electromagnetic . | . . . . . . . . . Robot Hit Streak 18 | . 3 9 18 6 17 4 12 8 Robot Miss Streak 6 | . 3 2 4 1 2 2 6 1 Penetration Max 1 | . . . . . 1 . 1 . Secondary Targets 2 | . . . . . . . 1 1 Max Gunslinging Chain 1 | . . . . . . . 1 1 Shots Hit Robots 317 | . 16 27 62 3 132 2 43 32 Core Hits 161 | . 11 9 22 6 37 1 49 26 Critical Kills 5 | . . . . . 3 . 2 . Critical Parts Destroyed 12 | . . . . . 8 1 3 . Critical Strikes 25 | . . 2 1 . 13 1 5 3 Burn 3 | . . . . . . . . 3 Destroy 18 | . . . . . 12 1 5 . Blast 2 | . . 2 . . . . . . Sever 2 | . . . 1 . 1 . . . Melee Attacks 6 | . . . 6 . . . . . Impact 6 | . . . 6 . . . . . Slashing . | . . . . . . . . . Piercing . | . . . . . . . . . Sneak Attacks 1 | . . . 1 . . . . . Combat Hostiles . | . . . . . . . . . Follow-up Attacks . | . . . . . . . . . Damage Inflicted 8383 | . 532 397 892 378 2584 38 2320 1242 Guns 3791 | . 124 120 715 . 1775 38 523 496 Cannons 268 | . . 268 . . . . . . Explosions 3849 | . 408 . . 375 530 . 1790 746 Melee 58 | . . . 58 . . . . . Ramming 22 | . . 9 . 3 3 . 7 . Kinetic 3297 | . 48 388 715 . 1775 38 333 . Thermal 1157 | . 76 . 119 . 276 . 190 496 Explosive 3849 | . 408 . . 375 530 . 1790 746 Electromagnetic . | . . . . . . . . . Impact 58 | . . . 58 . . . . . Slashing . | . . . . . . . . . Piercing . | . . . . . . . . . Highest Corruption . | . . . . . . . . . Average Corruption . | . . . . . . . . . Corruption Purged . | . . . . . . . . . Corruption Blocked . | . . . . . . . . . Overload Shots . | . . . . . . . . . Overflow Damage 45 | . 8 1 . 2 6 . 26 2 Projectiles 7 | . . 1 . . 6 . . . Explosions 38 | . 8 . . 2 . . 26 2 Melee . | . . . . . . . . . Knockbacks 3 | . . 3 . . . . . . Impact . | . . . . . . . . . Kinetic 3 | . . 3 . . . . . . Secondary . | . . . . . . . . . Self-Inflicted Damage 206 | . 37 . . 9 . . 116 44 Shots 8 | . 1 . . 1 . . 4 2 Rammed 2 | . . . . 1 . . 1 . Targets Rammed 6 | . . 3 . 1 1 . 1 . Kicked 3 | . . 3 . . . . . . Crushed 1 | . . . . . 1 . . . Highest Temperature 377 | . 40 81 14 . 120 150 377 . Average Temperature 47 | . 21 32 4 . 25 63 147 . Received Heat Transfer 1368 | . 12 174 192 . . . 639 351 Siege Activations . | . . . . . . . . . Robots Corrupted . | . . . . . . . . . Combat Hostiles . | . . . . . . . . . Parts Fried . | . . . . . . . . . Impact Corruptions . | . . . . . . . . . Robots Melted . | . . . . . . . . . Combat Hostiles . | . . . . . . . . . Parts Melted 5 | . . . 1 . . . 3 1 Heat Transferred 3226 | . 175 . 407 . 942 . 407 1295 Parts Sabotaged . | . . . . . . . . . Parts Stolen . | . . . . . . . . . Parts Stripped . | . . . . . . . . . Power Chain Reactions . | . . . . . . . . . Missiles Intercepted . | . . . . . . . . . Alert | -11 -10 -10 -9 -9 -9 -8 -8 -8 ------- Run | Scr Mat Min Mat Min Exi Min Mat Sto Peak Influence 507 | . 246 100 281 317 . 8 507 394 Initial 129 | . . 95 28 105 . . 2 129 Average 127 | . 140 41 153 237 . 1 237 198 Maximum Alert Level 2 | . 1 . 1 1 . . 2 1 Low Security (%) 71 | . 55 100 55 35 . 100 43 75 Level 1 24 | . 44 . 44 64 . . 19 24 Level 2 4 | . . . . . . . 37 . Level 3 . | . . . . . . . . . Level 4 . | . . . . . . . . . Level 5 . | . . . . . . . . . High Security . | . . . . . . . . . Max Security . | . . . . . . . . . Squads Dispatched 7 | . 1 1 . . . . 3 2 Investigation 2 | . 1 1 . . . . . . Extermination . | . . . . . . . . . Reinforcement 3 | . . . . . . . 3 . Assault 2 | . . . . . . . . 2 Garrison . | . . . . . . . . . Intercept . | . . . . . . . . . Searches Triggered . | . . . . . . . . . Construction Impeded . | . . . . . . . . . Haulers Reinforced . | . . . . . . . . . Active Scanning Responses . | . . . . . . . . . Cargo Convoy Interrupts . | . . . . . . . . . Stealth | -11 -10 -10 -9 -9 -9 -8 -8 -8 --------- Run | Scr Mat Min Mat Min Exi Min Mat Sto Distress Signals 4 | . 2 . . . . . 1 1 Communications Jammed . | . . . . . . . . . Distress Signals . | . . . . . . . . . Times Spotted 110 | . 9 5 11 6 36 1 27 15 Peak Tracking Total 10 | . 4 3 4 3 10 1 9 8 Tactical Retreats 9 | . 1 . 2 . 6 . . . Traps | -11 -10 -10 -9 -9 -9 -8 -8 -8 ------- Run | Scr Mat Min Mat Min Exi Min Mat Sto Traps Triggered 3 | . 1 . . . . . . 2 Indirectly . | . . . . . . . . . Trap Hack Attempts . | . . . . . . . . . Triggered . | . . . . . . . . . Disarmed . | . . . . . . . . . Reprogrammed . | . . . . . . . . . Reused . | . . . . . . . . . Traps Extracted . | . . . . . . . . . Installed . | . . . . . . . . . Triggered . | . . . . . . . . . Exploded 3 | . . . . . 3 . . . Machines | -11 -10 -10 -9 -9 -9 -8 -8 -8 ---------- Run | Scr Mat Min Mat Min Exi Min Mat Sto Machines Disabled 14 | . . . . . 10 . 3 1 Max in Single Turn 2 | . . . . . 1 . 2 1 Machines Sabotaged . | . . . . . . . . . Overloaded Fab Kills . | . . . . . . . . . Hacking | -11 -10 -10 -9 -9 -9 -8 -8 -8 --------- Run | Scr Mat Min Mat Min Exi Min Mat Sto Machines Accessed 11 | . 2 1 4 . 2 1 . 1 Terminals 8 | . 2 . 4 . . 1 . 1 Fabricators . | . . . . . . . . . Repair Stations . | . . . . . . . . . Recycling Units . | . . . . . . . . . Scanalyzers . | . . . . . . . . . Garrison Access . | . . . . . . . . . Total Hacks 27 | . 7 1 13 . 2 3 . 1 Successful 12 | . 2 1 4 . 2 2 . 1 Failed 15 | . 5 . 9 . . 1 . . Catastrophic 3 | . 1 . 1 . . 1 . . Database Lockouts . | . . . . . . . . . Manual 23 | . 7 . 13 . 1 2 . . Terminals 24 | . 7 . 13 . . 3 . 1 Fabricators . | . . . . . . . . . Repair Stations . | . . . . . . . . . Recycling Units . | . . . . . . . . . Scanalyzers . | . . . . . . . . . Garrison Access . | . . . . . . . . . Terminal Hacks 10 | . 1 1 3 . 2 2 . 1 Record 1 | . . . . . 1 . . . Part Schematic 1 | . 1 . . . . . . . Open Door 2 | . . 1 . . . . . 1 Level Access Points 1 | . . . . . . 1 . . Branch Access Points 1 | . . . 1 . . . . . Zone Layout 3 | . . . 2 . . 1 . . EX-Prototype ID Bank 1 | . . . . . 1 . . . Fabricator Hacks . | . . . . . . . . . Repair Station Hacks . | . . . . . . . . . Recycling Unit Hacks . | . . . . . . . . . Scanalyzer . | . . . . . . . . . Garrison Access Hacks . | . . . . . . . . . Unauthorized Hacks 2 | . 1 . 1 . . . . . Terminals 2 | . 1 . 1 . . . . . Botnet 2 | . 1 . 1 . . . . . Fabricators . | . . . . . . . . . Repair Stations . | . . . . . . . . . Recycling Units . | . . . . . . . . . Scanalyzers . | . . . . . . . . . Garrison Access . | . . . . . . . . . Data Cores Recovered . | . . . . . . . . . Used . | . . . . . . . . . Hacking Detections 6 | . 2 . 3 . . 1 . . Full Trace Events 1 | . . . 1 . . . . . Feedback Events . | . . . . . . . . . Feedback Blocked . | . . . . . . . . . Robot Schematics Acquired . | . . . . . . . . . Robots Built . | . . . . . . . . . Authchips . | . . . . . . . . . Time . | . . . . . . . . . Total Robot Build Rating . | . . . . . . . . . Part Schematics Acquired 1 | . 1 . . . . . . . Parts Built . | . . . . . . . . . Authchips . | . . . . . . . . . Time . | . . . . . . . . . Total Part Build Rating . | . . . . . . . . . Parts Repaired . | . . . . . . . . . Time . | . . . . . . . . . Parts Recycled . | . . . . . . . . . Recycled Matter . | . . . . . . . . . Retrieved Matter . | . . . . . . . . . Retrieved Components . | . . . . . . . . . Parts Scanalyzed . | . . . . . . . . . Part Schematics Acquired . | . . . . . . . . . Parts Damaged . | . . . . . . . . . Bothacking | -11 -10 -10 -9 -9 -9 -8 -8 -8 ------------ Run | Scr Mat Min Mat Min Exi Min Mat Sto Used RIF Installer . | . . . . . . . . . Robots Hacked . | . . . . . . . . . Non-combat . | . . . . . . . . . Combat . | . . . . . . . . . Robot Hacks Applied . | . . . . . . . . . Relay Couplers Released . | . . . . . . . . . Fabnet Peak Effective % . | . . . . . . . . . Robots Rewired . | . . . . . . . . . Allies Hacked . | . . . . . . . . . Hacks Repelled . | . . . . . . . . . Allies | -11 -10 -10 -9 -9 -9 -8 -8 -8 -------- Run | Scr Mat Min Mat Min Exi Min Mat Sto Total Allies 4 | . . 2 . . . . . 2 Largest Group 2 | . . 2 1 . . . . 2 Highest-Rated Group 62 | . . 45 31 . . . . 62 Highest-Rated Ally 31 | . . 31 31 . . . . 31 Total Orders . | . . . . . . . . . Ally Attacks 34 | . . 5 16 . 5 4 . 4 Total Damage 843 | . . 86 229 . 247 219 . 62 Kills 9 | . . 1 7 . . 1 . . Allies Corrupted 1 | . . . . . 1 . . . Allies Melted . | . . . . . . . . . Turrets Deployed 2 | . . . . . 1 1 . . Intel | -11 -10 -10 -9 -9 -9 -8 -8 -8 ------- Run | Scr Mat Min Mat Min Exi Min Mat Sto Robot Analysis Total . | . . . . . . . . . Derelict Logs Recovered 2 | . . 1 . 1 . . . . Drone Launches . | . . . . . . . . . Drone Recoveries . | . . . . . . . . . Exploration | -11 -10 -10 -9 -9 -9 -8 -8 -8 ------------- Run | Scr Mat Min Mat Min Exi Min Mat Sto Turns Passed 7492 | . 269 1472 730 611 3499 244 467 200 Spaces Moved 3170 | 1 132 550 353 373 1409 91 181 80 Core . | . . . . . . . . . Treads 2079 | . . . 141 373 1409 91 61 4 Legs 895 | 1 132 550 212 . . . . . Wheels 196 | . . . . . . . 120 76 Hover . | . . . . . . . . . Flight . | . . . . . . . . . Fastest Speed 120 | 120 120 200 133 160 160 240 140 140 Average Speed 202 | 120 159 252 143 160 216 240 178 145 Slowest Speed 320 | 120 260 260 160 160 240 240 320 240 Overloaded Moves . | . . . . . . . . . Propulsion Burnouts . | . . . . . . . . . Robots Hopped . | . . . . . . . . . Cave-ins Triggered . | . . . . . . . . . Exploration Rate (%) 44 | 2 26 96 46 67 87 35 26 17 Regions Visited 8 Branch Regions 5 Pre-discovered Areas 2 | . . 1 . . 1 . . . Known Exits Taken 3 | . . . 1 . . 1 1 . Unknown Exits Taken 5 | 1 1 1 . 1 1 . . . Scrap Searched 4 | . . 2 . 2 . . . . Spaces Dug 2 | . . . 1 . . 1 . . Terrain Destroyed 201 | . 17 . 1 21 29 8 90 35 Melee 1 | . . . 1 . . . . . Projectile 12 | . . . . . 1 7 4 . AOE 187 | . 17 . . 21 28 . 86 35 Terrain Rammed . | . . . . . . . . . Walls Destroyed . | . . . . . . . . . Machines Disabled . | . . . . . . . . . Actions | -11 -10 -10 -9 -9 -9 -8 -8 -8 --------- Run | Scr Mat Min Mat Min Exi Min Mat Sto Total 3765 | . 168 594 482 381 1650 103 264 123 Wait 95 | . 3 6 15 . 65 2 . 4 Move 3162 | . 131 549 352 372 1408 90 180 80 Hop . | . . . . . . . . . Pick Up 72 | . 9 7 21 . 22 1 8 4 Fast Attach 32 | . 2 2 5 . 7 . 13 3 Attach 33 | . . 3 6 . 8 . 12 4 Detach 6 | . . . . . 3 . 3 . Swap 36 | . . 1 12 4 11 2 2 4 Drop 59 | . 6 3 22 . 17 1 8 2 Fire 258 | . 17 20 43 4 108 7 37 22 Melee 6 | . . . 6 . . . . . Ram . | . . . . . . . . . Kick 3 | . . 3 . . . . . . Crush 3 | . . . . 1 1 . 1 . Escape Stasis . | . . . . . . . . . Rewire . | . . . . . . . . . Trap . | . . . . . . . . . Miscellaneous . | . . . . . . . . . Route ------- -11/Scrapyard -10/Materials -10/Mines -9/Materials (discovered 3 exits: *Mat / *Min x2) -9/Mines (discovered 4 exits: *Mat x2 / *Exi / [*Zio]) -9/Exiles -8/Mines (discovered 2 exits: *Mat x2) -8/Materials -8/Storage History --------- Turn | Location | Event 1 | -11/Scrapyard | Discovered new exit (range 0) 1 | -11/Scrapyard | Entered Materials 229 | -10/Materials | Discovered new exit (range 12) 270 | -10/Materials | Entered Mines 303 | -10/Mines | Discovered new exit (range 9) 317 | -10/Mines | Build established: Mutant 959 | -10/Mines | Learned location of Storage (-8) 1164 | -10/Mines | Learned Materials emergency access door positions 1480 | -10/Mines | Met a Derelict shopkeep closing up shop 1742 | -10/Mines | Entered Materials 1742 | -9/Materials | Accompanied by 1 ally 1742 | -9/Materials | Evolved 2 slots: Propulsion x1, Utility x1 1747 | -9/Materials | Led the pair of lost Derelicts to an unsafe place 1907 | -9/Materials | Discovered new exit (range 4) 2003 | -9/Materials | Discovered new exit (range 11) 2049 | -9/Materials | Build established: Scavenger-Mutant 2333 | -9/Materials | Identified exit to Mines 2472 | -9/Materials | Entered Mines 2539 | -9/Mines | A Derelict revealed a hidden shortcut to a safe place 2562 | -9/Mines | Discovered new exit (range 10) 2574 | -9/Mines | Learned 2 Materials zone layouts 2710 | -9/Mines | Deemed a non-threat by the Exiles lab entrance 2710 | -9/Mines | Discovered new exit (range 5) 2891 | -9/Mines | Discovered new exit (range 7) 3083 | -9/Mines | Entered Exiles 3123 | -9/Exiles | Met 8R-AWN 3149 | -9/Exiles | Met EX-HEX 3247 | -9/Exiles | Met EX-DEC 3283 | -9/Exiles | Learned location of Zion (-7) 3370 | -9/Exiles | Discovered new exit (range 14) 4017 | -9/Exiles | Met EX-BIN 4051 | -9/Exiles | Aligned with FarCom system 4053 | -9/Exiles | Given EX-Vault access code 4109 | -9/Exiles | Opened EX-Vault 4123 | -9/Exiles | Found Deploy-a-Sentry 4126 | -9/Exiles | Found Deploy-a-Sentry 4130 | -9/Exiles | Found Deploy-a-Sentry 4138 | -9/Exiles | Found Field Lobotomy Kit 4189 | -9/Exiles | Warned to stay clear of 0b10 Research branches 4200 | -9/Exiles | Build established: Mutant 4304 | -9/Exiles | DAS Turret deployed 4379 | -9/Exiles | Attacked by the Exiles 4492 | -9/Exiles | Core integrity fell below 50% 4612 | -9/Exiles | Destroyed 8R-AWN 4631 | -9/Exiles | Lost 3 parts (1p1n1w) 4647 | -9/Exiles | Found Prototype Device 4647 | -9/Exiles | Identified AS-neutralizer No. 17b 4653 | -9/Exiles | Found Prototype Ballistic Gun 4659 | -9/Exiles | Found Prototype Ballistic Gun 4667 | -9/Exiles | Found Prototype Processor 5175 | -9/Exiles | Identified 8R-AWN's Boregun (x2) 5358 | -9/Exiles | Destroyed EX-HEX 5397 | -9/Exiles | Destroyed EX-DEC 5482 | -9/Exiles | Build established: Scavenger-Mutant 5816 | -9/Exiles | Destroyed EX-BIN 5865 | -9/Exiles | Found Deploy-a-Sentry 5871 | -9/Exiles | Found Prototype Processor 6582 | -9/Exiles | Stole two prototypes: Field Lobotomy Kit, Deploy-a-Sentry 6582 | -9/Exiles | Entered Mines 6618 | -8/Mines | 12-ASH came to Exiles' defense 6620 | -8/Mines | DAS Turret deployed 6624 | -8/Mines | Core integrity fell below 20% 6625 | -8/Mines | Allies destroyed 12-ASH 6763 | -8/Mines | Identified exit to Materials 6826 | -8/Mines | Entered Materials 6826 | -8/Materials | Evolved 2 slots: Utility x2 7027 | -8/Materials | Core integrity fell below 50% 7072 | -8/Materials | Destroyed 17 combat bots 7079 | -8/Materials | Lost 14 parts (1p5n5u3w) 7121 | -8/Materials | Discovered new exit (range 17) 7291 | -8/Materials | Identified exit to Storage 7293 | -8/Materials | Entered Storage 7364 | -8/Storage | Met a pair of Derelict thieves 7374 | -8/Storage | Identified Exp. Core Analyzer 7431 | -8/Storage | Core integrity fell below 20% 7493 | -8/Storage | Destroyed 8 combat bots 7493 | -8/Storage | Destroyed by Y-45 Defender with Heavy Assault Rifle Last Messages --------------- 07472_ The unstable cave ceiling collapses. 07472_ U-05 Engineer builds a Door. 07472_ G-47 Trooper suffers critical hit (Burn). 07472_ Imp. Heat Sink melted. 07472_ G-47 Trooper destroyed. 07475_ U-05 Engineer builds a Wall. 07476_ The unstable cave ceiling collapses. 07479_ U-05 Engineer builds a Wall. 07480_ Dropped Exp. Heat Sink. 07480_ Acquired Lgt. Armor Plating. 07481_ The unstable cave ceiling collapses. 07482_ W-25 Informer sends out distress signal. 07484_ U-05 Engineer builds a Wall. 07486_ Acquired Lgt. Treads. 07487_ Lgt. Armor Plating destroyed. 07487_ U-05 Engineer builds a Wall. 07488_ The unstable cave ceiling collapses. 07488_ U-05 Engineer builds a Wall. 07489_ The unstable cave ceiling collapses. 07490_ U-05 Engineer builds a Wall. Map ----- +----------------------------------------------------+ | ??????????????????????????????????????????????? | | ??????????????????????????????????????????????? | | ??????????????????????????????????????????????? | | ??????????????????????????????????????????????? | | ??????????????????????????????????????????????? | | ??????????????????????????????????????????????? | | ??????????????????????????????????????????????? | | ??????????????????????????????????????????????? | | ??????????????????????????????????????????????? | | ??????????????????????????????????????????????? | | ??????????????????????????????????????????????? | | ??????????????????????????????????????????????? | | ????????????????????? ????????????????????????? | | ????????????????????# ############????????????? | | ??????????###########+## #????????????? | | ??????????# ## Y????????????? | | ???????#### """" """" ## #????????????? | | ???????#""" """" """" ## #????????????? | | ????????"R """" """" ## % #????????????? | | ????????""" """" """" ## #????????????? | | ??????????# ?# #???????###### | | ??????????# ## #???????# #! | | ??????????### +######## w # ########## " | | ??????????# %= %!=w! ! ^ # | | ??????????# = %=*%!%g !%% [ + " | | ??????????# ! @ =%= = ##T# | | ??????????##### ### ## ###+###+#### * | | ??????????????## #???# ?????### | | ???????????????#### ###?????# ?????? | | ??????????????????#! !#??????? #????? | | ??????????????????#! !#??????# #????? | | ??????????????????#! !#??????# #????? | | ??????????????????#! !#??????# #????? | | ??????????????????#####??????# #????? | | ?????????????????????????????#############????? | | | | | | | | | | | | | | | | | | | | | | | | | | | | | | | +----------------------------------------------------+ Best States ------------- Heat Dissipation 83 Energy Generation 19 Energy Capacity 310 Matter Stores 300 Matter Capacity 300 Sight Range 20 Terrain Scan Density 10 Armor Coverage 525 Weapon Cycling 25 Evasion (%) 55 Targeting Accuracy 8 Core Analysis 8 Recoil Reduction 3 Item Schematics ----------------- Huge Storage Unit | -10/Materials | Hacked Robot Schematics ------------------ None Fabricated ------------ Nothing Alien Tech Used ----------------- None Achievements -------------- None Challenges ------------ None Game ------ Seed GravitonRagnarokNetwork Manual? 0 Play Time 00:42:05 Cumulative 433.6 hours Start 2023.01.14 @ 14:55:59 End 2023.01.14 @ 16:57:25 Sessions 3 Manual Loads 0 Difficulty Rogue Special Mode None Game No. 428 Rogue 428 Adventurer 0 Explorer 0 Win Type - Total 32 Types 18/3/4/1/2/1/3/0/0 Lore% 92 Gallery% 94 Achievement% 82 Wizard Run 0 Options --------- ASCII 0 Keyboard 0 Movement Arrows Keybinds 0 Fullscreen 2 Font 24/Smallcaps Map View 76x50 Tactical HUD 1 Map Filters NONE Filters NONE Steam 1 RUN: f7f64086-ed07-4d66-bca1-685921e1b200